Workbook

Sheet Rrs
J1: Instrustions:
J3: 1. Put measured Rrs in column C-H in Sheet "Rrs"
J4: 2. Press "alt+F11" to turn on Visual-Basic editor
J5: 3. Change the number of total stations to be processed in Visual Basic (Line 5)
J6: 4. Click the "Run" button in Visual Basic
J7: 5. QAA-v6 inverted total a and bbp are then stored in Column BP-BV in Sheet "QAA_v6"
J8: 6. Decompose total a into aph and adg is carried out in Sheet "Decompose_a"
A11: Cruise | B11: Station | C11: Rrs412 | D11: Rrs443 | E11: Rrs490 | F11: Rrs510 | G11: Rrs555 | H11: Rrs670
A15: XXX | B15: yyy | C15: 0.0012 | D15: 0.00169 | E15: 0.00329 | F15: 0.00404 | G15: 0.00748 | H15: 0.00346
A16: XXX | B16: yyy | C16: 0.00097 | D16: 0.00119 | E16: 0.00184 | F16: 0.00229 | G16: 0.00425 | H16: 0.00161
A17: XXX | B17: yyy | C17: 0.00091 | D17: 0.00102 | E17: 0.00151 | F17: 0.0019 | G17: 0.0028 | H17: 0.00179
A18: XXX | B18: yyy | C18: 0.00229 | D18: 0.00346 | E18: 0.00537 | F18: 0.00649 | G18: 0.00907 | H18: 0.00638
A19: XXX | B19: yyy | C19: 0.00163 | D19: 0.0017 | E19: 0.00255 | F19: 0.00309 | G19: 0.00515 | H19: 0.00268
A20: XXX | B20: yyy | C20: 0.0008 | D20: 0.0008 | E20: 0.00121 | F20: 0.00147 | G20: 0.00269 | H20: 0.00122
A21: XXX | B21: yyy | C21: 0.00109 | D21: 0.00136 | E21: 0.0022 | F21: 0.00268 | G21: 0.00389 | H21: 0.00182
A22: XXX | B22: yyy | C22: 0.00136 | D22: 0.00213 | E22: 0.00381 | F22: 0.0047 | G22: 0.00655 | H22: 0.00282
A23: XXX | B23: yyy | C23: 0.0093 | D23: 0.00799 | E23: 0.00727 | F23: 0.00444 | G23: 0.00208 | H23: 0.00017
A24: XXX | B24: yyy | C24: 0.0031 | D24: 0.00247 | E24: 0.00269 | F24: 0.00234 | G24: 0.0017 | H24: 0.00013
A25: XXX | B25: yyy | C25: 0.00206 | D25: 0.00158 | E25: 0.00175 | F25: 0.0016 | G25: 0.0015 | H25: 0.00029
A26: XXX | B26: yyy | C26: 0.00359 | D26: 0.003 | E26: 0.00341 | F26: 0.00292 | G26: 0.00235 | H26: 0.0004
A27: XXX | B27: yyy | C27: 0.00483 | D27: 0.00402 | E27: 0.00439 | F27: 0.00375 | G27: 0.00265 | H27: 0.00024
A28: XXX | B28: yyy | C28: 0.00441 | D28: 0.00404 | E28: 0.00411 | F28: 0.00314 | G28: 0.00185 | H28: 0.00014
A29: XXX | B29: yyy | C29: 0.0045 | D29: 0.0041 | E29: 0.00402 | F29: 0.00295 | G29: 0.00169 | H29: 0.00018

Sheet QAA_v6
K4: Processing
BP6: Results
AG7: using 555 as ref. wavelength | AJ7: 2 | BB7: 2
R8: 0.08945 | S8: 0.08945 | T8: 0.08945 | U8: 0.08945 | V8: 0.08945 | W8: 0.08945 | AE8: -1.145902928 | AJ8: 1.2 | AY8: with 670 as the ref. wavelength | BB8: 1.2
D9: Input | R9: 0.1247 | S9: 0.1247 | T9: 0.1247 | U9: 0.1247 | V9: 0.1247 | W9: 0.1247 | AE9: -1.365828264 | AJ9: 0.9 | AP9: bbw ==> | AQ9: 0.0034 | AR9: 0.0025 | AS9: 0.00158 | AT9: 0.00133 | AU9: 0.0009 | BB9: 0.9 | BI9: 0.0034 | BJ9: 0.0025 | BK9: 0.00158 | BL9: 0.00133 | BM9: 0.0009
AE10: -0.4692660279
R11: u | S11: u | T11: u | U11: u | V11: u | W11: u | AD11: 5 | AF11: aw555 => | AG11: 0.0596 | AI11: =AU9 -> 0.0009 | AX11: aw670 => | AY11: 0.439 | BA11: 0.00034 | BR11: a | BS11: a | BT11: a | BU11: a | BV11: a
D12: Rrs | K12: rrs | Z12: rrs440/rrs555 | AJ12: Y | AK12: 412 | AL12: 443 | AM12: 489 | AN12: 510 | AO12: 555 | AQ12: 412 | AR12: 443 | AS12: 489 | AT12: 510 | AU12: 555 | BB12: Y | BC12: 412 | BD12: 443 | BE12: 489 | BF12: 510 | BG12: 555 | BI12: 412 | BJ12: 443 | BK12: 489 | BL12: 510 | BM12: 555 | BR12: 412 | BS12: 443 | BT12: 489 | BU12: 530 | BV12: 555
D13: 412 | E13: 443 | F13: 489 | G13: 510 | H13: 555 | I13: 670 | K13: 412 | L13: 443 | M13: 489 | N13: 510 | O13: 555 | P13: 670 | R13: 412 | S13: 443 | T13: 489 | U13: 510 | V13: 555 | W13: 670 | AB13: 670/(440+490) | AC13: 670/490 | AG13: mod a555 | AI13: cal. Bbp555 | AQ13: a | AR13: a | AS13: a | AT13: a | AU13: a | AY13: mod a670 | BA13: bbp670 | BI13: a | BJ13: a | BK13: a | BL13: a | BM13: a | BP13: Y | BQ13: bbp555
D15: 0.0045 | E15: 0.0041 | F15: 0.00402 | G15: 0.00295 | H15: 0.00169 | I15: 0.00018 | K15: =D15/(0.52+1.7*D15) -> 0.008528380555 | L15: 0.007780329051 | M15: 0.007630487022 | N15: 0.005618887079 | O15: 0.003232142413 | P15: 0.0003459502677 | R15: =(-R$8+(R$8^2+4*R$9*K15)^0.5)/(2*R$9) -> 0.08521841234 | S15: 0.07840892645 | T15: 0.07703212583 | U15: 0.05810869253 | V15: 0.03447647395 | W15: 0.003846896376 | Z15: =E15/H15 -> 2.426035503 | AA15: =LN(Z15) -> 0.8862584448 | AB15: =$I15/(E15+F15) -> 0.02216748768 | AC15: =I15/F15 -> 0.0447761194 | AD15: =LOG((E15+F15)/(H15+AD$11*AC15*I15)) -> 0.6714349961 | AE15: =AE$8+AE$9*AD15+AE$10*AD15^2 -> -2.274524659 | AG15: =AG$11+10^AE15 -> 0.06491465823 | AI15: =V15*AG15/(1-V15)-AI$11 -> 0.001417943025 | AJ15: =AJ$7*(1-AJ$8*EXP(-AJ$9*Z15)) -> 1.729629818 | AK15: =$AI15*(555/AK12)^$AJ15 -> 0.002373917149 | AL15: =$AI15*(555/AL12)^$AJ15 -> 0.002093972425 | AM15: 0.001765066048 | AN15: 0.001641253415 | AO15: 0.001417943025 | AQ15: =(1-R15)*(AQ$9+AK15)/R15 -> 0.06198042127 | AR15: =(1-S15)*(AR$9+AL15)/S15 -> 0.05399594372 | AS15: =(1-T15)*(AS$9+AM15)/T15 -> 0.04007923273 | AT15: =(1-U15)*(AT$9+AN15)/U15 -> 0.04816143062 | AU15: =(1-V15)*(AU$9+AO15)/V15 -> 0.06491465823 | AY15: =AY$11+0.39*(AB15)^1.14 -> 0.444072025 | BA15: =W15*AY15/(1-W15)-BA$11 -> 0.001374896091 | BB15: =BB$7*(1-BB$8*EXP(-BB$9*Z15)) -> 1.729629818 | BC15: =$BA15*(670/BC$12)^$BB15 -> 0.003188077925 | BD15: =$BA15*(670/BD$12)^$BB15 -> 0.002812123105 | BE15: 0.002370414699 | BF15: 0.002204139173 | BG15: 0.00190424205 | BI15: =(1-R15)*(BI$9+BC15)/R15 -> 0.0707200735 | BJ15: =(1-S15)*(BJ$9+BD15)/S15 -> 0.06243683541 | BK15: =(1-T15)*(BK$9+BE15)/T15 -> 0.0473322762 | BL15: =(1-U15)*(BL$9+BF15)/U15 -> 0.05728531862 | BM15: =(1-V15)*(BM$9+BG15)/V15 -> 0.07853360167 | BP15: 0.04160258895 | BQ15: 0.05026825458 | BR15: 2.131692876 | BS15: 1.49105311 | BT15: 0.7592744455 | BU15: 0.6173579812 | BV15: 0.3350105024
BP16: 0.1346126286 | BQ16: 0.02160179953 | BR16: 1.254438579 | BS16: 0.980468081 | BT16: 0.6066444496 | BU16: 0.4815234069 | BV16: 0.2553774206
BP17: 0.2708817535 | BQ17: 0.02755202053 | BR17: 1.717435977 | BS17: 1.465620384 | BT17: 0.9416925627 | BU17: 0.7367146814 | BV17: 0.4853452442
BP18: 0.2974296511 | BQ18: 0.09764452042 | BR18: 2.287067271 | BS18: 1.48291149 | BT18: 0.9306533167 | BU18: 0.7626934762 | BV18: 0.5346979975
BP19: 0.2168501863 | BQ19: 0.03881612487 | BR19: 1.300314484 | BS19: 1.204503897 | BT19: 0.7753947857 | BU19: 0.6330125007 | BV19: 0.3738633716
BP20: 0.163593368 | BQ20: 0.02193715293 | BR20: 1.550469289 | BS20: 1.481738685 | BT20: 0.9336458265 | BU20: 0.7574392503 | BV20: 0.4051555215
BP21: 0.2478987515 | BQ21: 0.02461636062 | BR21: 1.291133912 | BS21: 0.9898882818 | BT21: 0.5830071249 | BU21: 0.4712831149 | BV21: 0.3156845735
BP22: 0.2089590599 | BQ22: 0.03684406366 | BR22: 1.478391462 | BS22: 0.9172022005 | BT22: 0.4975795019 | BU22: 0.3995504153 | BV22: 0.281196785
BP23: 1.92435794 | BQ23: 0.001803941055 | BR23: 0.03494922834 | BS23: 0.03244055987 | BT23: 0.02612804437 | BU23: 0.03755099405 | BV23: 0.061735294
BP24: 1.350906381 | BQ24: 0.001693566105 | BR24: 0.09161272862 | BS24: 0.09251274467 | BT24: 0.06368095779 | BU24: 0.06566266326 | BV24: 0.0722127723
BP25: 1.069963329 | BQ25: 0.001850434569 | BR25: 0.1370331798 | BS25: 0.1452904432 | BT25: 0.1000899435 | BU25: 0.09918167251 | BV25: 0.08663354917
BP26: 1.239262889 | BQ26: 0.0029052953 | BR26: 0.1017223834 | BS26: 0.101114152 | BT26: 0.07004502334 | BU26: 0.07459524357 | BV26: 0.07707062056
BP27: 1.387259819 | BQ27: 0.003063813315 | BR27: 0.08047906747 | BS27: 0.08013909667 | BT27: 0.05753423066 | BU27: 0.06122751692 | BV27: 0.0713617743
BP28: 1.663762212 | BQ28: 0.001667503743 | BR28: 0.06719229606 | BS28: 0.05873918851 | BT28: 0.04266403761 | BU28: 0.04955124112 | BV28: 0.06577807848
BP29: 1.729629818 | BQ29: 0.001417943025 | BR29: 0.06198042127 | BS29: 0.05399594372 | BT29: 0.04007923273 | BU29: 0.04816143062 | BV29: 0.06491465823
BP71: 0.484398505 | BQ71: 0.0237279862 | BR71: 0.3593360454 | BS71: 0.2399203876 | BT71: 0.1360641392 | BU71: 0.1070243292 | BV71: 0.105906056 | BX71: =1/(BQ71+BV71) -> 7.71402313
BP72: 0.07083787604 | BQ72: 0.04438753034 | BR72: 2.027619449 | BS72: 1.207482261 | BT72: 0.589514751 | BU72: 0.356116223 | BV72: 0.2881989165 | BX72: 3.006737074
BP73: 0.0831962938 | BQ73: 0.11133671 | BR73: 3.101504222 | BS73: 1.942727299 | BT73: 0.9914146676 | BU73: 0.6070884623 | BV73: 0.4861521492 | BX73: 1.673671374
BP74: 0.06730831431 | BQ74: 0.03963543882 | BR74: 1.674959694 | BS74: 0.9956700406 | BT74: 0.4642456977 | BU74: 0.2845900382 | BV74: 0.2351465205 | BX74: 3.639249107
BP75: 0.0930554233 | BQ75: 0.02594039584 | BR75: 0.999589902 | BS75: 0.6266004133 | BT75: 0.2986714711 | BU75: 0.1839823243 | BV75: 0.1532665754 | BX75: 5.580140064
BP76: 0.6507550579 | BQ76: 0.02220586307 | BR76: 0.2575329137 | BS76: 0.1773237925 | BT76: 0.1031824723 | BU76: 0.08825947689 | BV76: 0.09382604005 | BX76: 8.618319385
BP77: 0.677022502 | BQ77: 0.02127663857 | BR77: 0.2489443203 | BS77: 0.170406579 | BT77: 0.1001416746 | BU77: 0.08679108471 | BV77: 0.09249045996 | BX77: 8.789887525
BP78: 0.09833974933 | BQ78: 0.0448458456 | BR78: 1.897144656 | BS78: 1.180152966 | BT78: 0.5939238944 | BU78: 0.3659763901 | BV78: 0.2981502818 | BX78: 2.915484812
BP79: 0.001994932648 | BQ79: 0.04889567796 | BR79: 5.040081037 | BS79: 2.131539876 | BT79: 0.9245584713 | BU79: 0.5386207072 | BV79: 0.4338663655 | BX79: 2.071413885
BP80: 0.001157061252 | BQ80: 0.02711124678 | BR80: 2.038677773 | BS80: 1.192418398 | BT80: 0.5443608894 | BU80: 0.2989062006 | BV80: 0.2366047123 | BX80: 3.791958604
BP81: 0.07385260071 | BQ81: 0.01816379784 | BR81: 1.277084286 | BS81: 0.7591898649 | BT81: 0.3504761867 | BU81: 0.2037085454 | BV81: 0.1735595817 | BX81: 5.21584797
BP82: 0.1761526365 | BQ82: 0.01571329712 | BR82: 0.7338502431 | BS82: 0.538724991 | BT82: 0.286273558 | BU82: 0.1724231074 | BV82: 0.1486033045 | BX82: 6.085812328
BP83: 0.249582423 | BQ83: 0.01179094689 | BR83: 0.6145662884 | BS83: 0.4441925406 | BT83: 0.2362202381 | BU83: 0.1529129534 | BV83: 0.134903566 | BX83: 6.816887558
BP84: 0.3334052285 | BQ84: 0.009768010211 | BR84: 0.4629758834 | BS84: 0.3523098379 | BT84: 0.1773299511 | BU84: 0.1269509826 | BV84: 0.1190986381 | BX84: 7.759959718
BP85: 0.4466680429 | BQ85: 0.007710489987 | BR85: 0.4005156727 | BS85: 0.2922387417 | BT85: 0.1647491404 | BU85: 0.1199929424 | BV85: 0.1119319058 | BX85: 8.358241188
BP86: 0.4649125772 | BQ86: 0.007703011551 | BR86: 0.375194925 | BS86: 0.2861635307 | BT86: 0.1690677693 | BU86: 0.1211810616 | BV86: 0.1121600397 | BX86: 8.342854531
BP87: 0.3003174042 | BQ87: 0.01173027106 | BR87: 0.5295930435 | BS87: 0.3988983031 | BT87: 0.2284750641 | BU87: 0.1462504879 | BV87: 0.1309769798 | BX87: 7.007352421
BP88: 0.201164705 | BQ88: 0.01407889605 | BR88: 0.711553481 | BS88: 0.5097219325 | BT88: 0.2777213988 | BU88: 0.1702450057 | BV88: 0.145392289 | BX88: 6.270725332
BP89: 0.2287452516 | BQ89: 0.01558627871 | BR89: 0.6217524154 | BS89: 0.4717711188 | BT89: 0.2677772538 | BU89: 0.1667273146 | BV89: 0.1422756889 | BX89: 6.334648018
BP90: 0.0973759391 | BQ90: 0.05061781467 | BR90: 2.133969274 | BS90: 1.47220478 | BT90: 0.79112657 | BU90: 0.4571349674 | BV90: 0.3721533252 | BX90: 2.365345942
BP91: 0.1821770517 | BQ91: 0.02257535451 | BR91: 0.674326087 | BS91: 0.5377048951 | BT91: 0.3177475437 | BU91: 0.1875757002 | BV91: 0.1541282522 | BX91: 5.659194051
BP92: 0.2904405657 | BQ92: 0.01890513823 | BR92: 0.4745771457 | BS92: 0.390418016 | BT92: 0.2256113201 | BU92: 0.1449267657 | BV92: 0.1317050593 | BX92: 6.639656654
BP93: 0.3595138214 | BQ93: 0.01157185541 | BR93: 0.4294954582 | BS93: 0.3452726469 | BT93: 0.2019477397 | BU93: 0.1362552091 | BV93: 0.1233340931 | BX93: 7.41257158
BP94: 0.1377378277 | BQ94: 0.02860669701 | BR94: 0.934257372 | BS94: 0.7116112183 | BT94: 0.4113581771 | BU94: 0.2370006087 | BV94: 0.1906515795 | BX94: 4.560831252
BP95: 0.2861630515 | BQ95: 0.01278328751 | BR95: 0.524309832 | BS95: 0.4069812639 | BT95: 0.2292041054 | BU95: 0.1456048951 | BV95: 0.1319622215 | BX95: 6.908677216
BP96: 0.2796494422 | BQ96: 0.01657105849 | BR96: 0.4999980552 | BS96: 0.4150747904 | BT96: 0.2493157823 | BU96: 0.1564796305 | BV96: 0.136370265 | BX96: 6.538455253
BP97: 0.2659574215 | BQ97: 0.01212389592 | BR97: 0.5705756196 | BS97: 0.4297514887 | BT97: 0.2372415273 | BU97: 0.1490847903 | BV97: 0.134334122 | BX97: 6.827895216
BP98: 0.3657567673 | BQ98: 0.01002640589 | BR98: 0.4722591679 | BS98: 0.3376844598 | BT98: 0.1866701507 | BU98: 0.1284174803 | BV98: 0.1198342684 | BX98: 7.700560663
BP99: 0.3947603091 | BQ99: 0.007030472713 | BR99: 0.4764336549 | BS99: 0.3154497825 | BT99: 0.1551711984 | BU99: 0.113598321 | BV99: 0.1114328194 | BX99: 8.44143348
BP100: 0.08454315221 | BQ100: 0.01695901209 | BR100: 0.903708544 | BS100: 0.7074232528 | BT100: 0.3429457579 | BU100: 0.1923379604 | BV100: 0.1645485494 | BX100: 5.509412344
BP101: 0.02213207689 | BQ101: 0.02064317714 | BR101: 1.144371032 | BS101: 0.8501209024 | BT101: 0.3731016193 | BU101: 0.2062153367 | BV101: 0.17482346 | BX101: 5.115962573
BP102: 0.06306352839 | BQ102: 0.03824386709 | BR102: 2.213019943 | BS102: 1.341130067 | BT102: 0.6625913892 | BU102: 0.3746861472 | BV102: 0.3122873656 | BX102: 2.852812836
BP103: 0.3147382571 | BQ103: 0.01239782249 | BR103: 0.4841460292 | BS103: 0.3683281585 | BT103: 0.1966302928 | BU103: 0.1330379889 | BV103: 0.1243088603 | BX103: =1/(BQ103+BV103) -> 7.314931354
BP104: 0.202399115 | BQ104: 0.01837978327 | BR104: 0.6745479905 | BS104: 0.5195016779 | BT104: 0.3020365148 | BU104: 0.1814270864 | BV104: 0.1519222895 | BX104: 5.871919137
BP105: 0.5679066369 | BQ105: 0.005147159666 | BR105: 0.3112832098 | BS105: 0.213230157 | BT105: 0.08659425096 | BU105: 0.08601620775 | BV105: 0.08955869789 | BX105: 10.55900898
BP106: 1.026665317 | BQ106: 0.002448498323 | BR106: 0.1630405876 | BS106: 0.1219247731 | BT106: 0.05250160566 | BU106: 0.06267938996 | BV106: 0.07328587567 | BX106: 13.20404391
BP107: 1.125326434 | BQ107: 0.002474555577 | BR107: 0.1346978954 | BS107: 0.1124192437 | BT107: 0.06260782092 | BU107: 0.06562711035 | BV107: 0.07462820459 | BX107: 12.9697043
BP108: 1.364022381 | BQ108: 0.001913001238 | BR108: 0.1007742984 | BS108: 0.08795315695 | BT108: 0.05894160547 | BU108: 0.06160560364 | BV108: 0.07104593129 | BX108: 13.70634089
BP109: 0.6860048441 | BQ109: 0.006131598379 | BR109: 0.2042532137 | BS109: 0.2017507559 | BT109: 0.1391277149 | BU109: 0.09950167181 | BV109: 0.0991607329 | BX109: 9.497367831
BP110: 1.977986908 | BQ110: 0.0008347322807 | BR110: 0.03169674053 | BS110: 0.02652832978 | BT110: 0.02399661343 | BU110: 0.04558734507 | BV110: 0.06086362091 | BX110: 16.20788803
BP111: 1.958133079 | BQ111: 0.00184751137 | BR111: 0.03279740033 | BS111: 0.02763574115 | BT111: 0.02546422351 | BU111: 0.04713613646 | BV111: 0.06129872313 | BX111: 15.83625703
BP112: 1.969619338 | BQ112: 0.0007750005966 | BR112: 0.03509981146 | BS112: 0.02875441549 | BT112: 0.02456721365 | BU112: 0.04647931313 | BV112: 0.06100611793 | BX112: 16.18617506
BP113: 1.569734804 | BQ113: 0.003490618017 | BR113: 0.0714758575 | BS113: 0.06124065565 | BT113: 0.0481706853 | BU113: 0.05674163923 | BV113: 0.06759969563 | BX113: 14.06661398
BP114: 1.474202304 | BQ114: 0.003074288736 | BR114: 0.08271916479 | BS114: 0.07118260319 | BT114: 0.0543959738 | BU114: 0.05978351238 | BV114: 0.06946076725 | BX114: 13.78643728
BP115: 1.51557804 | BQ115: 0.001364474331 | BR115: 0.09428137635 | BS115: 0.07581779355 | BT115: 0.05337161842 | BU115: 0.06002130334 | BV115: 0.06836775156 | BX115: 14.34057191
BP116: 0.8844442726 | BQ116: 0.00380552436 | BR116: 0.1632924877 | BS116: 0.1550791947 | BT116: 0.1043063509 | BU116: 0.08409792915 | BV116: 0.08720584408 | BX116: 10.98763833
BP117: 0.8119614468 | BQ117: 0.005246096384 | BR117: 0.176375074 | BS117: 0.1643848802 | BT117: 0.1093971698 | BU117: 0.08399974806 | BV117: 0.09018049316 | BX117: 10.47925955
BP118: 1.805465406 | BQ118: 0.001675460088 | BR118: 0.05313518719 | BS118: 0.04547104417 | BT118: 0.0364229186 | BU118: 0.0505448385 | BV118: 0.06368296741 | BX118: 15.30024571
BP119: 1.961217877 | BQ119: 0.001556655401 | BR119: 0.0316795486 | BS119: 0.0277551668 | BT119: 0.02541939497 | BU119: 0.04652716801 | BV119: 0.06123875243 | BX119: 15.92473135
BP120: 1.46407878 | BQ120: 0.002226402877 | BR120: 0.08922770814 | BS120: 0.07542497332 | BT120: 0.05484803443 | BU120: 0.06041054298 | BV120: 0.06943883481 | BX120: 13.9537666
BP121: 0.5832084124 | BQ121: 0.008178401429 | BR121: 0.2198354154 | BS121: 0.2346088039 | BT121: 0.1609535786 | BU121: 0.1102666183 | BV121: 0.1067342607 | BX121: 8.702261188
BP122: 1.126773119 | BQ122: 0.001858865573 | BR122: 0.132836033 | BS122: 0.1239263543 | BT122: 0.08412217129 | BU122: 0.0704249341 | BV122: 0.07829852139 | BX122: 12.47545657
BP123: 1.195214693 | BQ123: 0.004690992621 | BR123: 0.1164609877 | BS123: 0.09727696068 | BT123: 0.07125281553 | BU123: 0.06891465734 | BV123: 0.07604436198 | BX123: 12.38614737
BP124: 1.661164172 | BQ124: 0.001717435907 | BR124: 0.06946570152 | BS124: 0.05910311543 | BT124: 0.04717648293 | BU124: 0.05506852273 | BV124: 0.06625038214 | BX124: 14.71284541
BP125: 1.826835928 | BQ125: 0.002302062911 | BR125: 0.05343609862 | BS125: 0.04144375902 | BT125: 0.03270429461 | BU125: 0.04903142665 | BV125: 0.06318621174 | BX125: 15.26990908
BP126: -0.4
BP127: -0.4
BP128: -0.4
BP129: -0.4
BP130: -0.4
BP131: -0.4
BP132: -0.4
BP133: -0.4
BP134: -0.4
BP135: -0.4
BP136: -0.4
BP137: -0.4
BP138: -0.4
BP139: -0.4
BP140: -0.4
BP141: 0.2729828867 | BQ141: 0.09319791796 | BR141: 1.844741798 | BS141: 1.408983865 | BT141: 0.8433746184 | BU141: 0.6085699944 | BV141: 0.4897226371 | BX141: =1/(BQ141+BV141) -> 1.715499636
BP142: -0.05257977494 | BQ142: 0.01146031021 | BR142: 1.357300186 | BS142: 1.163298979 | BT142: 0.4069864143 | BU142: 0.2982268126 | BV142: 0.184943012 | BX142: 5.091563568
BP143: 0.3346011242 | BQ143: 0.03910655502 | BR143: 0.7930644912 | BS143: 0.7303003554 | BT143: 0.4724325645 | BU143: 0.3225850954 | BV143: 0.271750057 | BX143: 3.216917258
BP144: -0.007167051348 | BQ144: 0.01324890052 | BR144: 1.397669969 | BS144: 0.9543118478 | BT144: 0.3672197994 | BU144: 0.2329201803 | BV144: 0.1749231208 | BX144: 5.314286328
BP145: 0.2643782976 | BQ145: 0.02622573567 | BR145: 0.7529104009 | BS145: 0.6295087663 | BT145: 0.3770617597 | BU145: 0.2527978929 | BV145: 0.2077612283 | BX145: 4.273742362
BP146: 0.3312605315 | BQ146: 0.01926733797 | BR146: 0.5546276222 | BS146: 0.4827976675 | BT146: 0.3246180135 | BU146: 0.195920038 | BV146: 0.1726893835 | BX146: 5.209507603
BP147: 0.1760876293 | BQ147: 0.06105696617 | BR147: 1.285484896 | BS147: 1.162716827 | BT147: 0.7219056146 | BU147: 0.4386168432 | BV147: 0.3429066175 | BX147: 2.475470662
BP148: 0.3137117763 | BQ148: 0.03755510622 | BR148: 1.45118941 | BS148: 1.074311319 | BT148: 0.6309823336 | BU148: 0.4780358183 | BV148: 0.3862916534 | BX148: 2.35934327
BP149: 0.472036935 | BQ149: 0.07458114271 | BR149: 1.223805816 | BS149: 1.05725005 | BT149: 0.8238184593 | BU149: 0.5278680314 | BV149: 0.4772200908 | BX149: 1.812246764
BP150: 0.4242004819 | BQ150: 0.03774532547 | BR150: 1.010937526 | BS150: 0.8561689628 | BT150: 0.6093839565 | BU150: 0.4376303484 | BV150: 0.3576525984 | BX150: 2.529097751
BP151: 0.531930539 | BQ151: 0.03490587066 | BR151: 0.7195367566 | BS151: 0.5092151912 | BT151: 0.3233971197 | BU151: 0.2628216374 | BV151: 0.2418009877 | BX151: 3.613932831
BP152: 0.3369123604 | BQ152: 0.02028857686 | BR152: 0.5989029653 | BS152: 0.417363663 | BT152: 0.2482830842 | BU152: 0.1763492564 | BV152: 0.1511676642 | BX152: 5.832391949
BP153: 0.415051528 | BQ153: 0.01206749231 | BR153: 0.4294218197 | BS153: 0.3026662196 | BT153: 0.1805248538 | BU153: 0.1305026313 | BV153: 0.1170245115 | BX153: 7.746413184
BP154: 0.5695151783 | BQ154: 0.009748879376 | BR154: 0.3201879881 | BS154: 0.2260395699 | BT154: 0.1394657142 | BU154: 0.108226262 | BV154: 0.1032645721 | BX154: 8.848504203
BP155: 0.6290824085 | BQ155: 0.006538847923 | BR155: 0.2958181053 | BS155: 0.2124179872 | BT155: 0.129616584 | BU155: 0.1026250389 | BV155: 0.09897117254 | BX155: 9.477772781
BP156: 0.7632208965 | BQ156: 0.00453829835 | BR156: 0.2421050215 | BS156: 0.1803295098 | BT156: 0.1148220151 | BU156: 0.0933300932 | BV156: 0.09209963836 | BX156: 10.34790305
BP157: 0.4844394278 | BQ157: 0.02320939505 | BR157: 0.4761763669 | BS157: 0.3580761154 | BT157: 0.228716732 | BU157: 0.1712768465 | BV157: 0.1581329952 | BX157: 5.514430459
BP158: 0.7237840584 | BQ158: 0.01027804196 | BR158: 0.2186985081 | BS158: 0.1768599685 | BT158: 0.1237255326 | BU158: 0.09770954792 | BV158: 0.09591783755 | BX158: 9.416561213
BP159: 0.9384432886 | BQ159: 0.007325950943 | BR159: 0.169488999 | BS159: 0.1297164871 | BT159: 0.08879818842 | BU159: 0.07906172333 | BV159: 0.08393784774 | BX159: 10.95724717
BP160: 0.9889267559 | BQ160: 0.005506931884 | BR160: 0.1685880988 | BS160: 0.1243114371 | BT160: 0.08305174273 | BU160: 0.07596727011 | BV160: 0.08161902006 | BX160: 11.47763643
BP161: 1.022628399 | BQ161: 0.04624046596 | BR161: 0.3921839934 | BS161: 0.3810656349 | BT161: 0.3368468323 | BU161: 0.302061773 | BV161: 0.295282022 | BX161: 2.928064872
BP162: 0.895805863 | BQ162: 0.03146902134 | BR162: 0.4352811589 | BS162: 0.3832227108 | BT162: 0.2948694219 | BU162: 0.2631165957 | BV162: 0.2619735747
BP163: 1.401414144 | BQ163: 0.04050650059 | BR163: 0.3511739563 | BS163: 0.3348247219 | BT163: 0.3123435442 | BU163: 0.3453472868 | BV163: 0.3642224376
BP164: 0.9143148267 | BQ164: 0.0724569484 | BR164: 0.565184949 | BS164: 0.4886610528 | BT164: 0.3694677242 | BU164: 0.341796053 | BV164: 0.3461115719
BP165: 0.4800383828 | BQ165: 0.02033603999 | BR165: 0.5154182154 | BS165: 0.4289240446 | BT165: 0.2750243997 | BU165: 0.2038829808 | BV165: 0.1868458793 | BX165: =1/(BQ165+BV165) -> 4.826676012
BP166: 0.4553395295 | BQ166: 0.007257385816 | BR166: 0.3429546064 | BS166: 0.2900789138 | BT166: 0.1644452542 | BU166: 0.1178629827 | BV166: 0.111451111 | BX166: 8.423996822
BP167: 0.8501395936 | BQ167: 0.00127226119 | BR167: 0.2586231187 | BS167: 0.1940445936 | BT167: 0.1028631625 | BU167: 0.08562153594 | BV167: 0.08546648891 | BX167: 11.52887261
BP168: 0.8121473261 | BQ168: 0.004660596384 | BR168: 0.2013471409 | BS168: 0.1680046165 | BT168: 0.1125940952 | BU168: 0.09144409395 | BV168: 0.09061556953 | BX168: 10.49580439
BP169: 0.8921547306 | BQ169: 0.003020851226 | BR169: 0.1950538686 | BS169: 0.158529967 | BT169: 0.1029438634 | BU169: 0.08751166251 | BV169: 0.0864241239 | BX169: 11.18005789
BP170: 0.4198143863 | BQ170: 0.0490856707 | BR170: 0.6738953532 | BS170: 0.478678066 | BT170: 0.2783806329 | BU170: 0.2160737274 | BV170: 0.2004008852 | BX170: 4.008232012
BP171: 0.6677188917 | BQ171: 0.02039020059 | BR171: 0.3285897755 | BS171: 0.225833568 | BT171: 0.1364377188 | BU171: 0.1216594876 | BV171: 0.1213727809 | BX171: 7.054027713
BP172: 0.9283251532 | BQ172: 0.008183153494 | BR172: 0.1656562189 | BS172: 0.1284817343 | BT172: 0.08440024324 | BU172: 0.07746804375 | BV172: 0.08329832508 | BX172: 10.93117444
BP173: 0.5167962741 | BQ173: 0.0300859788 | BR173: 0.510300476 | BS173: 0.4696087193 | BT173: 0.3292698404 | BU173: 0.2322596115 | BV173: 0.217925607 | BX173: 4.032069698
BP174: 0.776629933 | BQ174: 0.005770685753 | BR174: 0.212595599 | BS174: 0.1672038698 | BT174: 0.1024862162 | BU174: 0.08556317931 | BV174: 0.08965811632 | BX174: 10.47901659
BP175: 0.949403645 | BQ175: 0.004110726407 | BR175: 0.1797219883 | BS175: 0.1354463873 | BT175: 0.08435909718 | BU175: 0.07612600108 | BV175: 0.08220815778 | BX175: 11.58495049
BP178: 0.6100007655 | BQ178: 0.05943777668 | BR178: 0.2053852825 | BS178: 0.2978695307 | BT178: 0.2085596636 | BU178: 0.1703474133 | BV178: 0.1543154761 | BX178: =1/(BQ178+BV178) -> 4.678291381
BP179: 0.6916966618 | BQ179: 0.04205095041 | BR179: 0.1714076873 | BS179: 0.2321345049 | BT179: 0.1605177666 | BU179: 0.1360518024 | BV179: 0.1306010313 | BX179: 5.791998389
BP180: 1.014814445 | BQ180: 0.002945706043 | BR180: 0.1364505796 | BS180: 0.1307941996 | BT180: 0.08194745796 | BU180: 0.07065648102 | BV180: 0.08024240668 | BX180: 12.02094827
BP181: 0.7515392181 | BQ181: 0.01112742252 | BR181: 0.1312008573 | BS181: 0.1655458575 | BT181: 0.1122339683 | BU181: 0.0911309407 | BV181: 0.09300445587 | BX181: 9.603207159
BP182: 0.3304251038 | BQ182: 0.09569102513 | BR182: 0.3252135889 | BS182: 0.6281292604 | BT182: 0.4449893912 | BU182: 0.3079002269 | BV182: 0.2332044898 | BX182: 3.040479285
BP183: 1.115972704 | BQ183: 0.005784781193 | BR183: 0.1138233816 | BS183: 0.1025181169 | BT183: 0.06621380639 | BU183: 0.0623935783 | BV183: 0.07630743714 | BX183: 12.18142256
BP184: 0.5934607947 | BQ184: 0.03632019906 | BR184: 0.1468034459 | BS184: 0.23113915 | BT184: 0.1567587593 | BU184: 0.1220508358 | BV184: 0.1168384806 | BX184: 6.529176159
BP186: 0.54121387 | BQ186: 0.04904738723 | BR186: 0.2276954433 | BS186: 0.3513497173 | BT186: 0.2435931869 | BU186: 0.19311381 | BV186: 0.1693898627 | BX186: =1/(BQ186+BV186) -> 4.577973767
BP187: 0.6285254533 | BQ187: 0.03171223331 | BR187: 0.1493708355 | BS187: 0.2234718821 | BT187: 0.1469933464 | BU187: 0.1203936768 | BV187: 0.1170716663 | BX187: =1/(BQ187+BV187) -> 6.721157347
BP188: 0.4617449565 | BQ188: 0.07168342501 | BR188: 0.2625562162 | BS188: 0.4384914806 | BT188: 0.3094350368 | BU188: 0.2332106862 | BV188: 0.1928578052 | BX188: =1/(BQ188+BV188) -> 3.780129091
BP189: 0.4944339828 | BQ189: 0.07470619621 | BR189: 0.2554676627 | BS189: 0.4105198563 | BT189: 0.2842713166 | BU189: 0.2225694377 | BV189: 0.1873184449 | BX189: =1/(BQ189+BV189) -> 3.816434957
BP190: 0.6169234369 | BQ190: 0.07087241911 | BR190: 0.2390456954 | BS190: 0.3321308325 | BT190: 0.2406363484 | BU190: 0.1982378569 | BV190: 0.1735599131 | BX190: =1/(BQ190+BV190) -> 4.091111806
BP192: 1.650437945 | BQ192: 0.001733968872 | BR192: 0.1335994852 | BS192: 0.05961078344 | BT192: 0.04405420144 | BU192: 0.04916079336 | BV192: 0.06595451025 | BX192: =1/(BQ192+BV192) -> 14.77356284
BP193: 1.495021536 | BQ193: 0.002391508206 | BR193: 0.1261538924 | BS193: 0.07094914216 | BT193: 0.04933063736 | BU193: 0.05208738986 | BV193: 0.06830992169 | BX193: 14.14398551
BP194: 0.9341627208 | BQ194: 0.01902593257 | BR194: 0.120109473 | BS194: 0.128769296 | BT194: 0.0886677305 | BU194: 0.08308423531 | BV194: 0.0892416183 | BX194: 9.23637777
BP195: 1.783715828 | BQ195: 0.0009667891965 | BR195: 0.1469931761 | BS195: 0.05146542462 | BT195: 0.03867821036 | BU195: 0.04613252095 | BV195: 0.06394122773 | BX195: 15.40641738
BP196: 0.6197102042 | BQ196: 0.06734465204 | BR196: 0.2047812691 | BS196: 0.2944124021 | BT196: 0.2109885041 | BU196: 0.170472732 | BV196: 0.1537160772 | BX196: 4.523643812
BP197: 0.3964954579 | BQ197: 0.1539982759 | BR197: 0.3027084667 | BS197: 0.5467300952 | BT197: 0.3875405116 | BU197: 0.2796647201 | BV197: 0.2129870109 | BX197: 2.724904883
BP198: 1.563217831 | BQ198: 0.003215530037 | BR198: 0.1246266695 | BS198: 0.06182191436 | BT198: 0.04412895276 | BU198: 0.05055416985 | BV198: 0.06701547905 | BX198: 14.23872465
BP199: 1.257658982 | BQ199: 0.005250201738 | BR199: 0.1168436963 | BS199: 0.08622160635 | BT199: 0.05632743096 | BU199: 0.05822799133 | BV199: 0.07249237776 | BX199: 12.86296398
BP200: 0.6406985503 | BQ200: 0.06438138872 | BR200: 0.1996969663 | BS200: 0.2807759866 | BT200: 0.1936561269 | BU200: 0.1629123143 | BV200: 0.1499320675 | BX200: 4.666062587
BP201: 0.6773730741 | BQ201: 0.0457921794 | BR201: 0.1791887861 | BS201: 0.2450703188 | BT201: 0.1704850437 | BU201: 0.1435082019 | BV201: 0.1360343956 | BX201: 5.499746119
BP202: 1.201456627 | BQ202: 0.009270602651 | BR202: 0.1104749753 | BS202: 0.08789224784 | BT202: 0.05980576611 | BU202: 0.0606121407 | BV202: 0.07418992656 | BX202: 11.98171171
BP203: 0.9705806295 | BQ203: 0.02400277854 | BR203: 0.1462551813 | BS203: 0.1466817106 | BT203: 0.1021489953 | BU203: 0.09993870781 | BV203: 0.1062406725 | BX203: 7.677929229
BP204: 0.5907026272 | BQ204: 0.04716503727 | BR204: 0.198140692 | BS204: 0.2956862732 | BT204: 0.200190958 | BU204: 0.1639348202 | BV204: 0.1501333739 | BX204: 5.068464537
BP205: 0.4195511566 | BQ205: 0.1520574369 | BR205: 0.3405818251 | BS205: 0.5703963681 | BT205: 0.4076992269 | BU205: 0.3086067115 | BV205: 0.2313696829 | BX205: 2.608057564
BP206: 1.581308963 | BQ206: 0.002731811105 | BR206: 0.1260193775 | BS206: 0.06135406685 | BT206: 0.04207897495 | BU206: 0.04902141577 | BV206: 0.0664682692 | BX206: 14.45085028
BP207: 1.533571982 | BQ207: 0.002520388496 | BR207: 0.1301566756 | BS207: 0.06673751222 | BT207: 0.04703796297 | BU207: 0.05217038464 | BV207: 0.06761871252 | BX207: 14.25738262
BP208: 1.758618463 | BQ208: 0.001458501083 | BR208: 0.1428877893 | BS208: 0.05109311046 | BT208: 0.04149465169 | BU208: 0.04864866251 | BV208: 0.06460455399 | BX208: 15.13705352
BP210: 1.949272696 | BQ210: 4.462442734e-05 | BR210: 0.1344406 | BS210: 0.03961308224 | BT210: 0.02596818302 | BU210: 0.03254009854 | BV210: 0.06113206151 | BX210: =1/(BQ210+BV210) -> 16.34609631
BP211: 1.980658613 | BQ211: 0.000343826694 | BR211: 0.1447698282 | BS211: 0.02855539237 | BT211: 0.02352286205 | BU211: 0.03379114187 | BV211: 0.06073103172 | BX211: 16.37334946
BP212: 1.712685247 | BQ212: 0.001499552562 | BR212: 0.1441412182 | BS212: 0.05503271607 | BT212: 0.04148143085 | BU212: 0.0491219584 | BV212: 0.06502273677 | BX212: 15.03255541
BP213: 1.504574514 | BQ213: 0.00276024357 | BR213: 0.1392784657 | BS213: 0.06978919583 | BT213: 0.05629354279 | BU213: 0.05906789379 | BV213: 0.06934731902 | BX213: 13.86817088
BP214: 1.606013103 | BQ214: 0.001764582202 | BR214: 0.1405354122 | BS214: 0.06375158947 | BT214: 0.04713698244 | BU214: 0.05234405216 | BV214: 0.06678034281 | BX214: 14.58897212
BP215: 1.871592244 | BQ215: 0.001464012078 | BR215: 0.1396259456 | BS215: 0.03966703962 | BT215: 0.03364823531 | BU215: 0.04341680663 | BV215: 0.06278606864 | BX215: 15.56418278
BP216: 0.6853176679 | BQ216: 0.02902601532 | BR216: 0.1326439198 | BS216: 0.1884854253 | BT216: 0.1217150721 | BU216: 0.1035660888 | BV216: 0.1043624893 | BX216: 7.496897901
BP217: 1.801865217 | BQ217: 0.001291047347 | BR217: 0.1444168024 | BS217: 0.04758090189 | BT217: 0.03747628213 | BU217: 0.04613103881 | BV217: 0.06374943311 | BX217: 15.37504018
BP218: 1.754706291 | BQ218: 0.001268305169 | BR218: 0.1340972872 | BS218: 0.05207407299 | BT218: 0.03697222977 | BU218: 0.04405454738 | BV218: 0.06407476178 | BX218: 15.30384242
BP219: 1.842422971 | BQ219: 0.0009242558569 | BR219: 0.1221629191 | BS219: 0.04509750424 | BT219: 0.02925854966 | BU219: 0.03652033888 | BV219: 0.06248302515 | BX219: 15.77105948
BP220: 0.7980485105 | BQ220: 0.01535958296 | BR220: 0.1124438999 | BS220: 0.1440677955 | BT220: 0.08718799654 | BU220: 0.07705961116 | BV220: 0.08675546346 | BX220: 9.792876124
BP221: 1.306410682 | BQ221: 0.006781607795 | BR221: 0.1140416535 | BS221: 0.07897199179 | BT221: 0.05316286073 | BU221: 0.05694756843 | BV221: 0.07147836528 | BX221: 12.77792415
BP222: 1.553445549 | BQ222: 0.002300456911 | BR222: 0.1390901838 | BS222: 0.06630486758 | BT222: 0.0500609516 | BU222: 0.05503713007 | BV222: 0.06783372852 | BX222: 14.2583819
BP223: 1.32143961 | BQ223: 0.002623674376 | BR223: 0.1431017357 | BS223: 0.08814237463 | BT223: 0.05872296225 | BU223: 0.06192466565 | BV223: 0.07173522906 | BX223: 13.44828869
BP224: 1.624515822 | BQ224: 0.001898016969 | BR224: 0.1372094382 | BS224: 0.06137781044 | BT224: 0.04644755066 | BU224: 0.05160605916 | BV224: 0.0665509999 | BX224: 14.60941363
BP226: 1.97734365 | BQ226: 0.001012712049 | BR226: 0.1432974123 | BS226: 0.02604248851 | BT226: 0.02511263538 | BU226: 0.03696250171 | BV226: 0.06094896657 | BX226: =1/(BQ226+BV226) -> 16.13900757
BP227: 1.997872558 | BQ227: 0.0005163686734 | BR227: 0.142673 | BS227: 0.01880718444 | BT227: 0.01950561093 | BU227: 0.0311449646 | BV227: 0.06017800297 | BX227: =1/(BQ227+BV227) -> 16.4759923
BP228: 1.846975595 | BQ228: 0.001383849681 | BR228: 0.1426840137 | BS228: 0.04267020012 | BT228: 0.03651128912 | BU228: 0.04548426562 | BV228: 0.06326510451 | BX228: =1/(BQ228+BV228) -> 15.46815432
BP229: 1.999996236 | BQ229: -0.000370652487 | BR229: 0.1500561845 | BS229: 0.01518769882 | BT229: 0.01289928352 | BU229: 0.02177652851 | BV229: 0.05970897804 | BX229: =1/(BQ229+BV229) -> 16.85251464
BP230: 1.868610952 | BQ230: 0.0002255062673 | BR230: 0.143839276 | BS230: 0.04963182453 | BT230: 0.03259591017 | BU230: 0.03853897216 | BV230: 0.06235729228 | BX230: =1/(BQ230+BV230) -> 15.97883162
BP232: 1.819828238 | BQ232: 0.0008485113582 | BR232: 0.159964982 | BS232: 0.04866178524 | BT232: 0.03818756618 | BU232: 0.04744574122 | BV232: 0.06354074746 | BX232: =1/(BQ232+BV232) -> 15.53054063
BP233: 1.425031917 | BQ233: 0.002088693584 | BR233: 0.1493082045 | BS233: 0.08051579163 | BT233: 0.05840125021 | BU233: 0.06114979882 | BV233: 0.07036373657 | BX233: 13.80215954
BP234: 1.517947794 | BQ234: 0.0008043504231 | BR234: 0.1398937928 | BS234: 0.08040865127 | BT234: 0.04482000132 | BU234: 0.04739421696 | BV234: 0.06671947729 | BX234: 14.80958698
BP235: 0.291098694 | BQ235: 0.1011109905 | BR235: 0.258665189 | BS235: 0.5695891716 | BT235: 0.3584395249 | BU235: 0.247520895 | BV235: 0.1972717777 | BX235: 3.351399968
BP236: 1.931859353 | BQ236: 0.0008440370271 | BR236: 0.1487934728 | BS236: 0.0350086888 | BT236: 0.02942400639 | BU236: 0.04023068936 | BV236: 0.06175900526 | BX236: 15.97366459
BP237: 0.4694884666 | BQ237: 0.07659541984 | BR237: 0.2516635874 | BS237: 0.4209922342 | BT237: 0.2959563455 | BU237: 0.2232795161 | BV237: 0.1863027114 | BX237: 3.803754692
BP238: 1.092230938 | BQ238: 0.0126177783 | BR238: 0.1147908562 | BS238: 0.09966210554 | BT238: 0.069986815 | BU238: 0.06819234931 | BV238: 0.0779303648 | BX238: 11.04384878
BP239: 1.401944696 | BQ239: 0.003394825029 | BR239: 0.1335973532 | BS239: 0.07697058751 | BT239: 0.05609394147 | BU239: 0.05942392346 | BV239: 0.07057947136 | BX239: 13.51820901
BP240: 1.741126876 | BQ240: 0.0009811148584 | BR240: 0.153963336 | BS240: 0.05587868117 | BT240: 0.04255072911 | BU240: 0.04952029342 | BV240: 0.06473382469 | BX240: 15.2172399
BP241: 0.6566881746 | BQ241: 0.04231221243 | BR241: 0.1816532563 | BS241: 0.2536711097 | BT241: 0.169033961 | BU241: 0.1449241493 | BV241: 0.1378270867 | BX241: 5.551259523
BP243: 0.5198201337 | BQ243: 0.02615314592 | BR243: 0.1630868087 | BS243: 0.2757530397 | BT243: 0.17420998 | BU243: 0.1357179533 | BV243: 0.1275688611 | BX243: =1/(BQ243+BV243) -> 6.505249438
BP244: 0.6560454126 | BQ244: 0.0152984874 | BR244: 0.1268501756 | BS244: 0.1886978962 | BT244: 0.1257666377 | BU244: 0.09548753328 | BV244: 0.09847769225 | BX244: 8.789185954
BP245: 0.7920202667 | BQ245: 0.006462808263 | BR245: 0.1408137394 | BS245: 0.1664812195 | BT245: 0.1150522087 | BU245: 0.09093523028 | BV245: 0.09201305235 | BX245: 10.15477289
BP246: 1.308964235 | BQ246: 0.001630507981 | BR246: 0.1418540738 | BS246: 0.09615363466 | BT246: 0.05831596751 | BU246: 0.05804025017 | BV246: 0.07137495573 | BX246: 13.69760494
BP247: 0.7559393862 | BQ247: 0.004317060906 | BR247: 0.1589696178 | BS247: 0.1857641006 | BT247: 0.1212159224 | BU247: 0.09625767175 | BV247: 0.0934148112 | BX247: 10.23207658
BP248: 0.8686865274 | BQ248: 0.005454985883 | BR248: 0.1399417471 | BS248: 0.1504655397 | BT248: 0.1032213135 | BU248: 0.08510977543 | BV248: 0.08782975848 | BX248: 10.71986643
BP249: 0.6069512836 | BQ249: 0.01173463398 | BR249: 0.1357305514 | BS249: 0.2065125977 | BT249: 0.1286246727 | BU249: 0.09999915583 | BV249: 0.1001618537 | BX249: 8.936831003
BP250: 0.3943551525 | BQ250: 0.02117663103 | BR250: 0.1412424581 | BS250: 0.2923045951 | BT250: 0.1778447301 | BU250: 0.1232740702 | BV250: 0.1147906126 | BX250: 7.354712602
BP251: 0.215775426 | BQ251: 0.03212963185 | BR251: 0.2074591069 | BS251: 0.5439752604 | BT251: 0.3845863556 | BU251: 0.2056564309 | BV251: 0.168100091 | BX251: 4.994263518
BP252: 0.01382715479 | BQ252: 0.03578003727 | BR252: 0.2983539979 | BS252: 1.146064003 | BT252: 0.7370994832 | BU252: 0.3224555496 | BV252: 0.2385308427 | BX252: 3.64549886
BP253: 0.2484048105 | BQ253: 0.05159366853 | BR253: 0.2383185955 | BS253: 0.5683718688 | BT253: 0.3383974445 | BU253: 0.2280436358 | BV253: 0.1873808543 | BX253: 4.184546487
BP254: 1.416469091 | BQ254: 0.0005040732232 | BR254: 0.1455725127 | BS254: 0.09975740297 | BT254: 0.05332079033 | BU254: 0.04977750879 | BV254: 0.06854756827 | BX254: 14.48191496
... 74 more rows

Sheet Decompose_a
V2: 412 | W2: 443 | X2: 489 | Y2: 510 | Z2: 555
U3: Pop/Fry aw => | V3: 0.00473 | W3: 0.00635 | X3: 0.015 | Y3: 0.0325 | Z3: 0.0595
K8: 0.015 | M8: 0.74
K9: 0.002 | M9: 0.2
K10: 0.6 | M10: 0.8
A11: Cruise | B11: Station | C11: Rrs412 | D11: Rrs443 | E11: Rrs490 | F11: Rrs510 | G11: Rrs555 | H11: Rrs670 | O11: a | P11: a | Q11: a | R11: a | S11: a
J12: Rrs443/Rrs555 | O12: 412 | P12: 443 | Q12: 489 | R12: 510 | S12: 555
L13: adg443/adg412 = | V13: aph =
K14: S_adg = | M14: aph410/aph440 = | U14: adg443 = | V14: 412 | W14: 443 | X14: 489 | Y14: 510 | Z14: 555
A15: =Rrs!A15 -> XXX | B15: =Rrs!B15 -> yyy | C15: =Rrs!C15 -> 0.0012 | D15: =Rrs!D15 -> 0.00169 | E15: =Rrs!E15 -> 0.00329 | F15: =Rrs!F15 -> 0.00404 | G15: =Rrs!G15 -> 0.00748 | H15: =Rrs!H15 -> 0.00346 | J15: =D15/G15 -> 0.2259358289 | K15: =K$8+K$9/(K$10+J15) -> 0.01742149563 | L15: =EXP(K15*(P$12-O$12)) -> 1.716120748 | M15: =M$8+M$9/(M$10+J15) -> 0.9349439666 | O15: =QAA_v6!BR15 -> 2.131692876 | P15: =QAA_v6!BS15 -> 1.49105311 | Q15: =QAA_v6!BT15 -> 0.7592744455 | R15: =QAA_v6!BU15 -> 0.6173579812 | S15: =QAA_v6!BV15 -> 0.3350105024 | U15: =(O15-M15*P15-$V$3+M15*$W$3)/(L15-M15) -> 0.9458149278 | V15: =O15-V$3-$U15*EXP($K15*(443-V$2)) -> 0.5038302547 | W15: =P15-W$3-$U15*EXP($K15*(443-W$2)) -> 0.5388881822 | X15: 0.3198822087 | Y15: 0.2904970398 | Z15: 0.1411079522
A16: =Rrs!A16 -> XXX | B16: =Rrs!B16 -> yyy | C16: =Rrs!C16 -> 0.00097 | D16: =Rrs!D16 -> 0.00119 | E16: =Rrs!E16 -> 0.00184 | F16: =Rrs!F16 -> 0.00229 | G16: =Rrs!G16 -> 0.00425 | H16: =Rrs!H16 -> 0.00161 | J16: =D16/G16 -> 0.28 | K16: 0.01727272727 | L16: =EXP(K16*(P$12-O$12)) -> 1.708224532 | M16: 0.9251851852 | O16: =QAA_v6!BR16 -> 1.254438579 | P16: =QAA_v6!BS16 -> 0.980468081 | Q16: =QAA_v6!BT16 -> 0.6066444496 | R16: =QAA_v6!BU16 -> 0.4815234069 | S16: =QAA_v6!BV16 -> 0.2553774206 | U16: =(O16-M16*P16-$V$3+M16*$W$3)/(L16-M16) -> 0.4450210116 | V16: =O16-V$3-$U16*EXP($K16*(443-V$2)) -> 0.4895127702 | W16: =P16-W$3-$U16*EXP($K16*(443-W$2)) -> 0.5290970694 | X16: =Q16-X$3-$U16*EXP($K16*(443-X$2)) -> 0.390589944 | Y16: =R16-Y$3-$U16*EXP($K16*(443-Y$2)) -> 0.309134474 | Z16: =S16-Z$3-$U16*EXP($K16*(443-Z$2)) -> 0.1315763653
A17: =Rrs!A17 -> XXX | B17: =Rrs!B17 -> yyy | C17: =Rrs!C17 -> 0.00091 | D17: =Rrs!D17 -> 0.00102 | E17: =Rrs!E17 -> 0.00151 | F17: =Rrs!F17 -> 0.0019 | G17: =Rrs!G17 -> 0.0028 | H17: =Rrs!H17 -> 0.00179 | J17: 0.3642857143 | K17: 0.01707407407 | L17: 1.697737184 | M17: 0.9117791411 | O17: =QAA_v6!BR17 -> 1.717435977 | P17: =QAA_v6!BS17 -> 1.465620384 | Q17: =QAA_v6!BT17 -> 0.9416925627 | R17: =QAA_v6!BU17 -> 0.7367146814 | S17: =QAA_v6!BV17 -> 0.4853452442 | U17: 0.4862520111 | V17: 0.8871778565 | W17: 0.9730183731 | X17: 0.7049937805 | Y17: 0.5493171101 | Z17: 0.3540060122
A18: =Rrs!A18 -> XXX | B18: =Rrs!B18 -> yyy | C18: =Rrs!C18 -> 0.00229 | D18: =Rrs!D18 -> 0.00346 | E18: =Rrs!E18 -> 0.00537 | F18: =Rrs!F18 -> 0.00649 | G18: =Rrs!G18 -> 0.00907 | H18: =Rrs!H18 -> 0.00638 | J18: 0.381477398 | K18: 0.01703774433 | L18: 1.695826231 | M18: 0.9092795819 | O18: =QAA_v6!BR18 -> 2.287067271 | P18: =QAA_v6!BS18 -> 1.48291149 | Q18: =QAA_v6!BT18 -> 0.9306533167 | R18: =QAA_v6!BU18 -> 0.7626934762 | S18: =QAA_v6!BV18 -> 0.5346979975 | U18: 1.194754383 | V18: 0.2562414483 | W18: 0.2818071069 | X18: 0.3700131806 | Y18: 0.3486720409 | Z18: 0.2979644144
A19: =Rrs!A19 -> XXX | B19: =Rrs!B19 -> yyy | C19: =Rrs!C19 -> 0.00163 | D19: =Rrs!D19 -> 0.0017 | E19: =Rrs!E19 -> 0.00255 | F19: =Rrs!F19 -> 0.00309 | G19: =Rrs!G19 -> 0.00515 | H19: =Rrs!H19 -> 0.00268 | J19: 0.3300970874 | K19: 0.01715031315 | L19: 1.701754381 | M19: 0.916975945 | O19: =QAA_v6!BR19 -> 1.300314484 | P19: =QAA_v6!BS19 -> 1.204503897 | Q19: =QAA_v6!BT19 -> 0.7753947857 | R19: =QAA_v6!BU19 -> 0.6330125007 | S19: =QAA_v6!BV19 -> 0.3738633716 | U19: 0.2509067175 | V19: 0.8686028779 | W19: 0.9472471798 | X19: 0.6463983911 | Y19: 0.5209923668 | Z19: 0.2776094051
A20: =Rrs!A20 -> XXX | B20: =Rrs!B20 -> yyy | C20: =Rrs!C20 -> 0.0008 | D20: =Rrs!D20 -> 0.0008 | E20: =Rrs!E20 -> 0.00121 | F20: =Rrs!F20 -> 0.00147 | G20: =Rrs!G20 -> 0.00269 | H20: =Rrs!H20 -> 0.00122 | J20: 0.2973977695 | K20: 0.01722866611 | L20: 1.705892867 | M20: 0.9222493225 | O20: =QAA_v6!BR20 -> 1.550469289 | P20: =QAA_v6!BS20 -> 1.481738685 | Q20: =QAA_v6!BT20 -> 0.9336458265 | R20: =QAA_v6!BU20 -> 0.7574392503 | S20: =QAA_v6!BV20 -> 0.4051555215 | U20: 0.2361572099 | V20: 1.142880389 | W20: 1.239231475 | X20: 0.811736711 | Y20: 0.650485577 | Z20: 0.3113643777
A21: =Rrs!A21 -> XXX | B21: =Rrs!B21 -> yyy | C21: =Rrs!C21 -> 0.00109 | D21: =Rrs!D21 -> 0.00136 | E21: =Rrs!E21 -> 0.0022 | F21: =Rrs!F21 -> 0.00268 | G21: =Rrs!G21 -> 0.00389 | H21: =Rrs!H21 -> 0.00182 | J21: =D21/G21 -> 0.3496143959 | K21: 0.01710611803 | L21: =EXP(K21*(P$12-O$12)) -> 1.699424491 | M21: 0.9139713775 | O21: =QAA_v6!BR21 -> 1.291133912 | P21: =QAA_v6!BS21 -> 0.9898882818 | Q21: =QAA_v6!BT21 -> 0.5830071249 | R21: =QAA_v6!BU21 -> 0.4712831149 | S21: =QAA_v6!BV21 -> 0.3156845735 | U21: 0.493317892 | V21: 0.448047405 | W21: 0.4902203899 | X21: 0.3434180613 | Y21: 0.2819717055 | Z21: 0.1835625261
A22: =Rrs!A22 -> XXX | B22: =Rrs!B22 -> yyy | C22: =Rrs!C22 -> 0.00136 | D22: =Rrs!D22 -> 0.00213 | E22: =Rrs!E22 -> 0.00381 | F22: =Rrs!F22 -> 0.0047 | G22: =Rrs!G22 -> 0.00655 | H22: =Rrs!H22 -> 0.00282 | J22: 0.3251908397 | K22: 0.01716171617 | L22: 1.702356047 | M22: 0.9177476255 | O22: =QAA_v6!BR22 -> 1.478391462 | P22: =QAA_v6!BS22 -> 0.9172022005 | Q22: =QAA_v6!BT22 -> 0.4975795019 | R22: =QAA_v6!BU22 -> 0.3995504153 | S22: =QAA_v6!BV22 -> 0.281196785 | U22: 0.8127990991 | V22: 0.08998800102 | W22: 0.09805310144 | X22: 0.1134878381 | Y22: 0.1096458619 | Z22: 0.1027862079
A23: =Rrs!A23 -> XXX | B23: =Rrs!B23 -> yyy | C23: =Rrs!C23 -> 0.0093 | D23: =Rrs!D23 -> 0.00799 | E23: =Rrs!E23 -> 0.00727 | F23: =Rrs!F23 -> 0.00444 | G23: =Rrs!G23 -> 0.00208 | H23: =Rrs!H23 -> 0.00017 | J23: 3.841346154 | K23: 0.01545031392 | L23: 1.614394125 | M23: 0.7830909468 | O23: =QAA_v6!BR23 -> 0.03494922834 | P23: =QAA_v6!BS23 -> 0.03244055987 | Q23: =QAA_v6!BT23 -> 0.02612804437 | R23: =QAA_v6!BU23 -> 0.03755099405 | S23: =QAA_v6!BV23 -> 0.061735294 | U23: 0.01177422073 | V23: 0.01121099557 | W23: 0.01431633914 | X23: 0.005343451292 | Y23: 0.0008691955195 | Z23: 0.0001488163709
A24: =Rrs!A24 -> XXX | B24: =Rrs!B24 -> yyy | C24: =Rrs!C24 -> 0.0031 | D24: =Rrs!D24 -> 0.00247 | E24: =Rrs!E24 -> 0.00269 | F24: =Rrs!F24 -> 0.00234 | G24: =Rrs!G24 -> 0.0017 | H24: =Rrs!H24 -> 0.00013 | J24: 1.452941176 | K24: 0.01597421203 | L24: 1.640827312 | M24: 0.828772846 | O24: =QAA_v6!BR24 -> 0.09161272862 | P24: =QAA_v6!BS24 -> 0.09251274467 | Q24: =QAA_v6!BT24 -> 0.06368095779 | R24: =QAA_v6!BU24 -> 0.06566266326 | S24: =QAA_v6!BV24 -> 0.0722127723 | U24: 0.01905461537 | V24: 0.05561739531 | W24: 0.0671081293 | X24: 0.03954246385 | Y24: 0.02662854677 | Z24: 0.00952858338
A25: =Rrs!A25 -> XXX | B25: =Rrs!B25 -> yyy | C25: =Rrs!C25 -> 0.00206 | D25: =Rrs!D25 -> 0.00158 | E25: =Rrs!E25 -> 0.00175 | F25: =Rrs!F25 -> 0.0016 | G25: =Rrs!G25 -> 0.0015 | H25: =Rrs!H25 -> 0.00029 | J25: 1.053333333 | K25: 0.01620967742 | L25: 1.65284823 | M25: 0.8479136691 | O25: =QAA_v6!BR25 -> 0.1370331798 | P25: =QAA_v6!BS25 -> 0.1452904432 | Q25: =QAA_v6!BT25 -> 0.1000899435 | R25: =QAA_v6!BU25 -> 0.09918167251 | S25: =QAA_v6!BV25 -> 0.08663354917 | U25: 0.01800603372 | V25: 0.1025419389 | W25: 0.1209344095 | X25: 0.07654737483 | Y25: 0.06060377689 | Z25: 0.0242029027
A26: =Rrs!A26 -> XXX | B26: =Rrs!B26 -> yyy | C26: =Rrs!C26 -> 0.00359 | D26: =Rrs!D26 -> 0.003 | E26: =Rrs!E26 -> 0.00341 | F26: =Rrs!F26 -> 0.00292 | G26: =Rrs!G26 -> 0.00235 | H26: =Rrs!H26 -> 0.0004 | J26: 1.276595745 | K26: 0.01606575964 | L26: 1.645490554 | M26: 0.8363114754 | O26: =QAA_v6!BR26 -> 0.1017223834 | P26: =QAA_v6!BS26 -> 0.101114152 | Q26: =QAA_v6!BT26 -> 0.07004502334 | R26: =QAA_v6!BU26 -> 0.07459524357 | S26: =QAA_v6!BV26 -> 0.07707062056 | U26: 0.0219234976 | V26: 0.06091747517 | W26: 0.07284065442 | X26: 0.04457481349 | Y26: 0.03462331519 | Z26: 0.01394438914
A27: =Rrs!A27 -> XXX | B27: =Rrs!B27 -> yyy | C27: =Rrs!C27 -> 0.00483 | D27: =Rrs!D27 -> 0.00402 | E27: =Rrs!E27 -> 0.00439 | F27: =Rrs!F27 -> 0.00375 | G27: =Rrs!G27 -> 0.00265 | H27: =Rrs!H27 -> 0.00024 | J27: 1.516981132 | K27: 0.01594474153 | L27: 1.63932896 | M27: 0.8263192182 | O27: =QAA_v6!BR27 -> 0.08047906747 | P27: =QAA_v6!BS27 -> 0.08013909667 | Q27: =QAA_v6!BT27 -> 0.05753423066 | R27: =QAA_v6!BU27 -> 0.06122751692 | S27: =QAA_v6!BV27 -> 0.0713617743 | U27: 0.01817409809 | V27: 0.04595574215 | W27: 0.05561499858 | X27: 0.03380620414 | Y27: 0.02248302541 | Z27: 0.008814686398
A28: =Rrs!A28 -> XXX | B28: =Rrs!B28 -> yyy | C28: =Rrs!C28 -> 0.00441 | D28: =Rrs!D28 -> 0.00404 | E28: =Rrs!E28 -> 0.00411 | F28: =Rrs!F28 -> 0.00314 | G28: =Rrs!G28 -> 0.00185 | H28: =Rrs!H28 -> 0.00014 | J28: 2.183783784 | K28: 0.0157184466 | L28: 1.627869077 | M28: 0.8070289855 | O28: =QAA_v6!BR28 -> 0.06719229606 | P28: =QAA_v6!BS28 -> 0.05873918851 | Q28: =QAA_v6!BT28 -> 0.04266403761 | R28: =QAA_v6!BU28 -> 0.04955124112 | S28: =QAA_v6!BV28 -> 0.06577807848 | U28: 0.02458786142 | V28: 0.0224364768 | W28: 0.02780132709 | X28: 0.01573227061 | Y28: 0.008473960145 | Z28: 0.002049834115
A29: =Rrs!A29 -> XXX | B29: =Rrs!B29 -> yyy | C29: =Rrs!C29 -> 0.0045 | D29: =Rrs!D29 -> 0.0041 | E29: =Rrs!E29 -> 0.00402 | F29: =Rrs!F29 -> 0.00295 | G29: =Rrs!G29 -> 0.00169 | H29: =Rrs!H29 -> 0.00018 | J29: 2.426035503 | K29: 0.01566093078 | L29: 1.624969188 | M29: 0.8019955979 | O29: =QAA_v6!BR29 -> 0.06198042127 | P29: =QAA_v6!BS29 -> 0.05399594372 | Q29: =QAA_v6!BT29 -> 0.04007923273 | R29: =QAA_v6!BU29 -> 0.04816143062 | S29: =QAA_v6!BV29 -> 0.06491465823 | U29: 0.02313389444 | V29: 0.01965855562 | W29: 0.02451204928 | X29: 0.01382329241 | Y29: 0.007560196006 | Z29: 0.001410735403
O71: 0.3593360454 | P71: 0.2399203876 | Q71: 0.1360641392 | R71: 0.1070243292 | S71: 0.105906056
O72: 2.027619449 | P72: 1.207482261 | Q72: 0.589514751 | R72: 0.356116223 | S72: 0.2881989165
O73: 3.101504222 | P73: 1.942727299 | Q73: 0.9914146676 | R73: 0.6070884623 | S73: 0.4861521492
O74: 1.674959694 | P74: 0.9956700406 | Q74: 0.4642456977 | R74: 0.2845900382 | S74: 0.2351465205
O75: 0.999589902 | P75: 0.6266004133 | Q75: 0.2986714711 | R75: 0.1839823243 | S75: 0.1532665754
O76: 0.2575329137 | P76: 0.1773237925 | Q76: 0.1031824723 | R76: 0.08825947689 | S76: 0.09382604005
O77: 0.2489443203 | P77: 0.170406579 | Q77: 0.1001416746 | R77: 0.08679108471 | S77: 0.09249045996
O78: 1.897144656 | P78: 1.180152966 | Q78: 0.5939238944 | R78: 0.3659763901 | S78: 0.2981502818
O79: 5.040081037 | P79: 2.131539876 | Q79: 0.9245584713 | R79: 0.5386207072 | S79: 0.4338663655
O80: 2.038677773 | P80: 1.192418398 | Q80: 0.5443608894 | R80: 0.2989062006 | S80: 0.2366047123
O81: 1.277084286 | P81: 0.7591898649 | Q81: 0.3504761867 | R81: 0.2037085454 | S81: 0.1735595817
O82: 0.7338502431 | P82: 0.538724991 | Q82: 0.286273558 | R82: 0.1724231074 | S82: 0.1486033045
O83: 0.6145662884 | P83: 0.4441925406 | Q83: 0.2362202381 | R83: 0.1529129534 | S83: 0.134903566
O84: 0.4629758834 | P84: 0.3523098379 | Q84: 0.1773299511 | R84: 0.1269509826 | S84: 0.1190986381
O85: 0.4005156727 | P85: 0.2922387417 | Q85: 0.1647491404 | R85: 0.1199929424 | S85: 0.1119319058
O86: 0.375194925 | P86: 0.2861635307 | Q86: 0.1690677693 | R86: 0.1211810616 | S86: 0.1121600397
O87: 0.5295930435 | P87: 0.3988983031 | Q87: 0.2284750641 | R87: 0.1462504879 | S87: 0.1309769798
O88: 0.711553481 | P88: 0.5097219325 | Q88: 0.2777213988 | R88: 0.1702450057 | S88: 0.145392289
O89: 0.6217524154 | P89: 0.4717711188 | Q89: 0.2677772538 | R89: 0.1667273146 | S89: 0.1422756889
O90: 2.133969274 | P90: 1.47220478 | Q90: 0.79112657 | R90: 0.4571349674 | S90: 0.3721533252
O91: 0.674326087 | P91: 0.5377048951 | Q91: 0.3177475437 | R91: 0.1875757002 | S91: 0.1541282522
O92: 0.4745771457 | P92: 0.390418016 | Q92: 0.2256113201 | R92: 0.1449267657 | S92: 0.1317050593
O93: 0.4294954582 | P93: 0.3452726469 | Q93: 0.2019477397 | R93: 0.1362552091 | S93: 0.1233340931
O94: 0.934257372 | P94: 0.7116112183 | Q94: 0.4113581771 | R94: 0.2370006087 | S94: 0.1906515795
O95: 0.524309832 | P95: 0.4069812639 | Q95: 0.2292041054 | R95: 0.1456048951 | S95: 0.1319622215
O96: 0.4999980552 | P96: 0.4150747904 | Q96: 0.2493157823 | R96: 0.1564796305 | S96: 0.136370265
O97: 0.5705756196 | P97: 0.4297514887 | Q97: 0.2372415273 | R97: 0.1490847903 | S97: 0.134334122
O98: 0.4722591679 | P98: 0.3376844598 | Q98: 0.1866701507 | R98: 0.1284174803 | S98: 0.1198342684
O99: 0.4764336549 | P99: 0.3154497825 | Q99: 0.1551711984 | R99: 0.113598321 | S99: 0.1114328194
O100: 0.903708544 | P100: 0.7074232528 | Q100: 0.3429457579 | R100: 0.1923379604 | S100: 0.1645485494
O101: 1.144371032 | P101: 0.8501209024 | Q101: 0.3731016193 | R101: 0.2062153367 | S101: 0.17482346
O102: 2.213019943 | P102: 1.341130067 | Q102: 0.6625913892 | R102: 0.3746861472 | S102: 0.3122873656
O103: 0.4841460292 | P103: 0.3683281585 | Q103: 0.1966302928 | R103: 0.1330379889 | S103: 0.1243088603
O104: 0.6745479905 | P104: 0.5195016779 | Q104: 0.3020365148 | R104: 0.1814270864 | S104: 0.1519222895
O105: 0.3112832098 | P105: 0.213230157 | Q105: 0.08659425096 | R105: 0.08601620775 | S105: 0.08955869789
O106: 0.1630405876 | P106: 0.1219247731 | Q106: 0.05250160566 | R106: 0.06267938996 | S106: 0.07328587567
O107: 0.1346978954 | P107: 0.1124192437 | Q107: 0.06260782092 | R107: 0.06562711035 | S107: 0.07462820459
O108: 0.1007742984 | P108: 0.08795315695 | Q108: 0.05894160547 | R108: 0.06160560364 | S108: 0.07104593129
O109: 0.2042532137 | P109: 0.2017507559 | Q109: 0.1391277149 | R109: 0.09950167181 | S109: 0.0991607329
O110: 0.03169674053 | P110: 0.02652832978 | Q110: 0.02399661343 | R110: 0.04558734507 | S110: 0.06086362091
O111: 0.03279740033 | P111: 0.02763574115 | Q111: 0.02546422351 | R111: 0.04713613646 | S111: 0.06129872313
O112: 0.03509981146 | P112: 0.02875441549 | Q112: 0.02456721365 | R112: 0.04647931313 | S112: 0.06100611793
O113: 0.0714758575 | P113: 0.06124065565 | Q113: 0.0481706853 | R113: 0.05674163923 | S113: 0.06759969563
O114: 0.08271916479 | P114: 0.07118260319 | Q114: 0.0543959738 | R114: 0.05978351238 | S114: 0.06946076725
O115: 0.09428137635 | P115: 0.07581779355 | Q115: 0.05337161842 | R115: 0.06002130334 | S115: 0.06836775156
O116: 0.1632924877 | P116: 0.1550791947 | Q116: 0.1043063509 | R116: 0.08409792915 | S116: 0.08720584408
O117: 0.176375074 | P117: 0.1643848802 | Q117: 0.1093971698 | R117: 0.08399974806 | S117: 0.09018049316
O118: 0.05313518719 | P118: 0.04547104417 | Q118: 0.0364229186 | R118: 0.0505448385 | S118: 0.06368296741
O119: 0.0316795486 | P119: 0.0277551668 | Q119: 0.02541939497 | R119: 0.04652716801 | S119: 0.06123875243
O120: 0.08922770814 | P120: 0.07542497332 | Q120: 0.05484803443 | R120: 0.06041054298 | S120: 0.06943883481
O121: 0.2198354154 | P121: 0.2346088039 | Q121: 0.1609535786 | R121: 0.1102666183 | S121: 0.1067342607
O122: 0.132836033 | P122: 0.1239263543 | Q122: 0.08412217129 | R122: 0.0704249341 | S122: 0.07829852139
O123: 0.1164609877 | P123: 0.09727696068 | Q123: 0.07125281553 | R123: 0.06891465734 | S123: 0.07604436198
O124: 0.06946570152 | P124: 0.05910311543 | Q124: 0.04717648293 | R124: 0.05506852273 | S124: 0.06625038214
O125: 0.05343609862 | P125: 0.04144375902 | Q125: 0.03270429461 | R125: 0.04903142665 | S125: 0.06318621174
O141: 1.844741798 | P141: 1.408983865 | Q141: 0.8433746184 | R141: 0.6085699944 | S141: 0.4897226371
O142: 1.357300186 | P142: 1.163298979 | Q142: 0.4069864143 | R142: 0.2982268126 | S142: 0.184943012
O143: 0.7930644912 | P143: 0.7303003554 | Q143: 0.4724325645 | R143: 0.3225850954 | S143: 0.271750057
O144: 1.397669969 | P144: 0.9543118478 | Q144: 0.3672197994 | R144: 0.2329201803 | S144: 0.1749231208
O145: 0.7529104009 | P145: 0.6295087663 | Q145: 0.3770617597 | R145: 0.2527978929 | S145: 0.2077612283
O146: 0.5546276222 | P146: 0.4827976675 | Q146: 0.3246180135 | R146: 0.195920038 | S146: 0.1726893835
O147: 1.285484896 | P147: 1.162716827 | Q147: 0.7219056146 | R147: 0.4386168432 | S147: 0.3429066175
O148: 1.45118941 | P148: 1.074311319 | Q148: 0.6309823336 | R148: 0.4780358183 | S148: 0.3862916534
O149: 1.223805816 | P149: 1.05725005 | Q149: 0.8238184593 | R149: 0.5278680314 | S149: 0.4772200908
O150: 1.010937526 | P150: 0.8561689628 | Q150: 0.6093839565 | R150: 0.4376303484 | S150: 0.3576525984
O151: 0.7195367566 | P151: 0.5092151912 | Q151: 0.3233971197 | R151: 0.2628216374 | S151: 0.2418009877
O152: 0.5989029653 | P152: 0.417363663 | Q152: 0.2482830842 | R152: 0.1763492564 | S152: 0.1511676642
O153: 0.4294218197 | P153: 0.3026662196 | Q153: 0.1805248538 | R153: 0.1305026313 | S153: 0.1170245115
O154: 0.3201879881 | P154: 0.2260395699 | Q154: 0.1394657142 | R154: 0.108226262 | S154: 0.1032645721
O155: 0.2958181053 | P155: 0.2124179872 | Q155: 0.129616584 | R155: 0.1026250389 | S155: 0.09897117254
O156: 0.2421050215 | P156: 0.1803295098 | Q156: 0.1148220151 | R156: 0.0933300932 | S156: 0.09209963836
O157: 0.4761763669 | P157: 0.3580761154 | Q157: 0.228716732 | R157: 0.1712768465 | S157: 0.1581329952
O158: 0.2186985081 | P158: 0.1768599685 | Q158: 0.1237255326 | R158: 0.09770954792 | S158: 0.09591783755
O159: 0.169488999 | P159: 0.1297164871 | Q159: 0.08879818842 | R159: 0.07906172333 | S159: 0.08393784774
O160: 0.1685880988 | P160: 0.1243114371 | Q160: 0.08305174273 | R160: 0.07596727011 | S160: 0.08161902006
O161: 0.3921839934 | P161: 0.3810656349 | Q161: 0.3368468323 | R161: 0.302061773 | S161: 0.295282022
O162: 0.4352811589 | P162: 0.3832227108 | Q162: 0.2948694219 | R162: 0.2631165957 | S162: 0.2619735747
O163: 0.3511739563 | P163: 0.3348247219 | Q163: 0.3123435442 | R163: 0.3453472868 | S163: 0.3642224376
O164: 0.565184949 | P164: 0.4886610528 | Q164: 0.3694677242 | R164: 0.341796053 | S164: 0.3461115719
O165: 0.5154182154 | P165: 0.4289240446 | Q165: 0.2750243997 | R165: 0.2038829808 | S165: 0.1868458793
O166: 0.3429546064 | P166: 0.2900789138 | Q166: 0.1644452542 | R166: 0.1178629827 | S166: 0.111451111
O167: 0.2586231187 | P167: 0.1940445936 | Q167: 0.1028631625 | R167: 0.08562153594 | S167: 0.08546648891
O168: 0.2013471409 | P168: 0.1680046165 | Q168: 0.1125940952 | R168: 0.09144409395 | S168: 0.09061556953
O169: 0.1950538686 | P169: 0.158529967 | Q169: 0.1029438634 | R169: 0.08751166251 | S169: 0.0864241239
O170: 0.6738953532 | P170: 0.478678066 | Q170: 0.2783806329 | R170: 0.2160737274 | S170: 0.2004008852
O171: 0.3285897755 | P171: 0.225833568 | Q171: 0.1364377188 | R171: 0.1216594876 | S171: 0.1213727809
O172: 0.1656562189 | P172: 0.1284817343 | Q172: 0.08440024324 | R172: 0.07746804375 | S172: 0.08329832508
O173: 0.510300476 | P173: 0.4696087193 | Q173: 0.3292698404 | R173: 0.2322596115 | S173: 0.217925607
O174: 0.212595599 | P174: 0.1672038698 | Q174: 0.1024862162 | R174: 0.08556317931 | S174: 0.08965811632
O175: 0.1797219883 | P175: 0.1354463873 | Q175: 0.08435909718 | R175: 0.07612600108 | S175: 0.08220815778
O178: 0.2053852825 | P178: 0.2978695307 | Q178: 0.2085596636 | R178: 0.1703474133 | S178: 0.1543154761
O179: 0.1714076873 | P179: 0.2321345049 | Q179: 0.1605177666 | R179: 0.1360518024 | S179: 0.1306010313
O180: 0.1364505796 | P180: 0.1307941996 | Q180: 0.08194745796 | R180: 0.07065648102 | S180: 0.08024240668
O181: 0.1312008573 | P181: 0.1655458575 | Q181: 0.1122339683 | R181: 0.0911309407 | S181: 0.09300445587
O182: 0.3252135889 | P182: 0.6281292604 | Q182: 0.4449893912 | R182: 0.3079002269 | S182: 0.2332044898
O183: 0.1138233816 | P183: 0.1025181169 | Q183: 0.06621380639 | R183: 0.0623935783 | S183: 0.07630743714
O184: 0.1468034459 | P184: 0.23113915 | Q184: 0.1567587593 | R184: 0.1220508358 | S184: 0.1168384806
O186: 0.2276954433 | P186: 0.3513497173 | Q186: 0.2435931869 | R186: 0.19311381 | S186: 0.1693898627
O187: 0.1493708355 | P187: 0.2234718821 | Q187: 0.1469933464 | R187: 0.1203936768 | S187: 0.1170716663
O188: 0.2625562162 | P188: 0.4384914806 | Q188: 0.3094350368 | R188: 0.2332106862 | S188: 0.1928578052
O189: 0.2554676627 | P189: 0.4105198563 | Q189: 0.2842713166 | R189: 0.2225694377 | S189: 0.1873184449
O190: 0.2390456954 | P190: 0.3321308325 | Q190: 0.2406363484 | R190: 0.1982378569 | S190: 0.1735599131
O192: 0.1335994852 | P192: 0.05961078344 | Q192: 0.04405420144 | R192: 0.04916079336 | S192: 0.06595451025
O193: 0.1261538924 | P193: 0.07094914216 | Q193: 0.04933063736 | R193: 0.05208738986 | S193: 0.06830992169
O194: 0.120109473 | P194: 0.128769296 | Q194: 0.0886677305 | R194: 0.08308423531 | S194: 0.0892416183
O195: 0.1469931761 | P195: 0.05146542462 | Q195: 0.03867821036 | R195: 0.04613252095 | S195: 0.06394122773
O196: 0.2047812691 | P196: 0.2944124021 | Q196: 0.2109885041 | R196: 0.170472732 | S196: 0.1537160772
O197: 0.3027084667 | P197: 0.5467300952 | Q197: 0.3875405116 | R197: 0.2796647201 | S197: 0.2129870109
O198: 0.1246266695 | P198: 0.06182191436 | Q198: 0.04412895276 | R198: 0.05055416985 | S198: 0.06701547905
O199: 0.1168436963 | P199: 0.08622160635 | Q199: 0.05632743096 | R199: 0.05822799133 | S199: 0.07249237776
O200: 0.1996969663 | P200: 0.2807759866 | Q200: 0.1936561269 | R200: 0.1629123143 | S200: 0.1499320675
O201: 0.1791887861 | P201: 0.2450703188 | Q201: 0.1704850437 | R201: 0.1435082019 | S201: 0.1360343956
O202: 0.1104749753 | P202: 0.08789224784 | Q202: 0.05980576611 | R202: 0.0606121407 | S202: 0.07418992656
O203: 0.1462551813 | P203: 0.1466817106 | Q203: 0.1021489953 | R203: 0.09993870781 | S203: 0.1062406725
O204: 0.198140692 | P204: 0.2956862732 | Q204: 0.200190958 | R204: 0.1639348202 | S204: 0.1501333739
O205: 0.3405818251 | P205: 0.5703963681 | Q205: 0.4076992269 | R205: 0.3086067115 | S205: 0.2313696829
O206: 0.1260193775 | P206: 0.06135406685 | Q206: 0.04207897495 | R206: 0.04902141577 | S206: 0.0664682692
O207: 0.1301566756 | P207: 0.06673751222 | Q207: 0.04703796297 | R207: 0.05217038464 | S207: 0.06761871252
O208: 0.1428877893 | P208: 0.05109311046 | Q208: 0.04149465169 | R208: 0.04864866251 | S208: 0.06460455399
O210: 0.1344406 | P210: 0.03961308224 | Q210: 0.02596818302 | R210: 0.03254009854 | S210: 0.06113206151
O211: 0.1447698282 | P211: 0.02855539237 | Q211: 0.02352286205 | R211: 0.03379114187 | S211: 0.06073103172
O212: 0.1441412182 | P212: 0.05503271607 | Q212: 0.04148143085 | R212: 0.0491219584 | S212: 0.06502273677
O213: 0.1392784657 | P213: 0.06978919583 | Q213: 0.05629354279 | R213: 0.05906789379 | S213: 0.06934731902
O214: 0.1405354122 | P214: 0.06375158947 | Q214: 0.04713698244 | R214: 0.05234405216 | S214: 0.06678034281
O215: 0.1396259456 | P215: 0.03966703962 | Q215: 0.03364823531 | R215: 0.04341680663 | S215: 0.06278606864
O216: 0.1326439198 | P216: 0.1884854253 | Q216: 0.1217150721 | R216: 0.1035660888 | S216: 0.1043624893
O217: 0.1444168024 | P217: 0.04758090189 | Q217: 0.03747628213 | R217: 0.04613103881 | S217: 0.06374943311
O218: 0.1340972872 | P218: 0.05207407299 | Q218: 0.03697222977 | R218: 0.04405454738 | S218: 0.06407476178
O219: 0.1221629191 | P219: 0.04509750424 | Q219: 0.02925854966 | R219: 0.03652033888 | S219: 0.06248302515
O220: 0.1124438999 | P220: 0.1440677955 | Q220: 0.08718799654 | R220: 0.07705961116 | S220: 0.08675546346
O221: 0.1140416535 | P221: 0.07897199179 | Q221: 0.05316286073 | R221: 0.05694756843 | S221: 0.07147836528
O222: 0.1390901838 | P222: 0.06630486758 | Q222: 0.0500609516 | R222: 0.05503713007 | S222: 0.06783372852
O223: 0.1431017357 | P223: 0.08814237463 | Q223: 0.05872296225 | R223: 0.06192466565 | S223: 0.07173522906
O224: 0.1372094382 | P224: 0.06137781044 | Q224: 0.04644755066 | R224: 0.05160605916 | S224: 0.0665509999
O226: 0.1432974123 | P226: 0.02604248851 | Q226: 0.02511263538 | R226: 0.03696250171 | S226: 0.06094896657
O227: 0.142673 | P227: 0.01880718444 | Q227: 0.01950561093 | R227: 0.0311449646 | S227: 0.06017800297
O228: 0.1426840137 | P228: 0.04267020012 | Q228: 0.03651128912 | R228: 0.04548426562 | S228: 0.06326510451
O229: 0.1500561845 | P229: 0.01518769882 | Q229: 0.01289928352 | R229: 0.02177652851 | S229: 0.05970897804
O230: 0.143839276 | P230: 0.04963182453 | Q230: 0.03259591017 | R230: 0.03853897216 | S230: 0.06235729228
O232: 0.159964982 | P232: 0.04866178524 | Q232: 0.03818756618 | R232: 0.04744574122 | S232: 0.06354074746
O233: 0.1493082045 | P233: 0.08051579163 | Q233: 0.05840125021 | R233: 0.06114979882 | S233: 0.07036373657
O234: 0.1398937928 | P234: 0.08040865127 | Q234: 0.04482000132 | R234: 0.04739421696 | S234: 0.06671947729
O235: 0.258665189 | P235: 0.5695891716 | Q235: 0.3584395249 | R235: 0.247520895 | S235: 0.1972717777
O236: 0.1487934728 | P236: 0.0350086888 | Q236: 0.02942400639 | R236: 0.04023068936 | S236: 0.06175900526
O237: 0.2516635874 | P237: 0.4209922342 | Q237: 0.2959563455 | R237: 0.2232795161 | S237: 0.1863027114
O238: 0.1147908562 | P238: 0.09966210554 | Q238: 0.069986815 | R238: 0.06819234931 | S238: 0.0779303648
O239: 0.1335973532 | P239: 0.07697058751 | Q239: 0.05609394147 | R239: 0.05942392346 | S239: 0.07057947136
O240: 0.153963336 | P240: 0.05587868117 | Q240: 0.04255072911 | R240: 0.04952029342 | S240: 0.06473382469
O241: 0.1816532563 | P241: 0.2536711097 | Q241: 0.169033961 | R241: 0.1449241493 | S241: 0.1378270867
O243: 0.1630868087 | P243: 0.2757530397 | Q243: 0.17420998 | R243: 0.1357179533 | S243: 0.1275688611
O244: 0.1268501756 | P244: 0.1886978962 | Q244: 0.1257666377 | R244: 0.09548753328 | S244: 0.09847769225
O245: 0.1408137394 | P245: 0.1664812195 | Q245: 0.1150522087 | R245: 0.09093523028 | S245: 0.09201305235
O246: 0.1418540738 | P246: 0.09615363466 | Q246: 0.05831596751 | R246: 0.05804025017 | S246: 0.07137495573
O247: 0.1589696178 | P247: 0.1857641006 | Q247: 0.1212159224 | R247: 0.09625767175 | S247: 0.0934148112
O248: 0.1399417471 | P248: 0.1504655397 | Q248: 0.1032213135 | R248: 0.08510977543 | S248: 0.08782975848
O249: 0.1357305514 | P249: 0.2065125977 | Q249: 0.1286246727 | R249: 0.09999915583 | S249: 0.1001618537
O250: 0.1412424581 | P250: 0.2923045951 | Q250: 0.1778447301 | R250: 0.1232740702 | S250: 0.1147906126
O251: 0.2074591069 | P251: 0.5439752604 | Q251: 0.3845863556 | R251: 0.2056564309 | S251: 0.168100091
O252: 0.2983539979 | P252: 1.146064003 | Q252: 0.7370994832 | R252: 0.3224555496 | S252: 0.2385308427
O253: 0.2383185955 | P253: 0.5683718688 | Q253: 0.3383974445 | R253: 0.2280436358 | S253: 0.1873808543
O254: 0.1455725127 | P254: 0.09975740297 | Q254: 0.05332079033 | R254: 0.04977750879 | S254: 0.06854756827
O255: 0.1490041977 | P255: 0.1080891477 | Q255: 0.06063294764 | R255: 0.05774395759 | S255: 0.07172889962
O256: 0.1270302888 | P256: 0.06560972967 | Q256: 0.02975720264 | R256: 0.03062709561 | S256: 0.06179194018
O257: 0.1358830901 | P257: 0.1075084564 | Q257: 0.06579870093 | R257: 0.06319123339 | S257: 0.07478490212
O258: 0.1226545749 | P258: 0.1370137507 | Q258: 0.08468061802 | R258: 0.07608584456 | S258: 0.08423988277
O259: 0.2550771073 | P259: 0.5078968081 | Q259: 0.3440019156 | R259: 0.2390692542 | S259: 0.1933285855
O260: 0.1502051736 | P260: 0.07166380987 | Q260: 0.04026045182 | R260: 0.04223519148 | S260: 0.06411392679
O261: 0.1560916053 | P261: 0.08549174502 | Q261: 0.04170276697 | R261: 0.04070516058 | S261: 0.06402955956
O262: 0.1653213566 | P262: 0.2387878403 | Q262: 0.1330134574 | R262: 0.09046497449 | S262: 0.09576858549
O263: 0.1758574223 | P263: 0.1936043075 | Q263: 0.1281411056 | R263: 0.1058980326 | S263: 0.09532715147
O264: 0.103068834 | P264: 0.1720242379 | Q264: 0.1055531504 | R264: 0.08340010898 | S264: 0.08485191529
O265: 0.1648039424 | P265: 0.2705625311 | Q265: 0.1724340943 | R265: 0.1364639015 | S265: 0.1286318589
O266: 0.1442645125 | P266: 0.08417005354 | Q266: 0.0465144504 | R266: 0.04713279797 | S266: 0.06664852256
O268: 0.1619308669 | P268: 0.1832766176 | Q268: 0.08508067873 | R268: 0.0763733053 | S268: 0.08318693482
O269: 0.1916127506 | P269: 0.320128811 | Q269: 0.2015728328 | R269: 0.162627686 | S269: 0.148561508
O270: 0.1992897804 | P270: 0.3144716385 | Q270: 0.2060469737 | R270: 0.167671743 | S270: 0.1523762861
... 59 more rows
